{"text_format":"1","workbook":"xlsx","n_sheets":3,"sheets":["Relació de despeses","Relació d'ingressos ","despeses i ingressos"],"not_rendered":{"charts":0,"images":2,"macros":1,"external_links":0,"defined_names":8,"comments":3,"pivot_tables":0},"unopened":[],"bounds":{"document_bytes":16777216,"sheet_cells":100000,"rows_first":2000,"rows_last":500,"rows_between":2000,"halvings":0,"cell_chars":16384,"cell_head_chars":4096},"cells_cut":0,"cells_raw":0,"read":"whole","date_system":"1900"}

{"sheet":"Relació de despeses","index":0,"n_rows":161,"n_cols":12,"rows_kept":161,"cut":false,"hidden":false,"merged":[[159,0,159,12],[160,0,160,12],[137,0,137,12],[156,11,156,12],[157,11,157,12],[158,11,158,12],[142,11,142,12],[143,11,143,12],[144,11,144,12],[145,11,145,12],[146,11,146,12],[147,11,147,12],[148,11,148,12],[149,11,149,12],[150,11,150,12],[152,11,152,12],[153,11,153,12],[154,11,154,12],[155,11,155,12],[141,0,141,12],[150,0,150,10],[152,0,152,10],[153,0,153,10],[154,0,154,10],[155,0,155,10],[156,0,156,10],[157,0,157,10],[158,0,158,10],[151,0,151,12],[142,0,142,10],[143,0,143,10],[144,0,144,10],[145,0,145,10],[146,0,146,10],[147,0,147,10],[148,0,148,10],[149,0,149,10],[126,0,127,9],[135,0,135,10],[138,0,138,10],[139,0,139,10],[140,0,140,10],[51,11,51,12],[50,11,50,12],[110,0,110,12],[111,11,111,12],[120,11,120,12],[121,0,121,6],[121,11,121,12],[122,0,122,2],[122,3,122,6],[122,11,122,12],[123,0,123,5],[123,11,123,12],[112,11,112,12],[113,11,113,12],[114,11,114,12],[115,0,115,6],[115,11,115,12],[131,1,131,2],[98,0,98,12],[33,11,33,12],[40,11,40,12],[39,11,39,12],[38,11,38,12],[47,11,47,12],[46,11,46,12],[45,11,45,12],[44,11,44,12],[47,0,47,6],[37,11,37,12],[99,11,99,12],[100,11,100,12],[101,11,101,12],[116,0,116,12],[117,11,117,12],[118,11,118,12],[119,11,119,12],[102,11,102,12],[103,0,103,6],[103,11,103,12],[104,0,104,12],[105,11,105,12],[106,11,106,12],[107,11,107,12],[108,11,108,12],[109,0,109,6],[109,11,109,12],[90,11,90,12],[91,0,91,6],[91,11,91,12],[92,0,92,12],[93,11,93,12],[94,11,94,12],[95,11,95,12],[96,11,96,12],[97,0,97,6],[97,11,97,12],[82,11,82,12],[83,11,83,12],[84,11,84,12],[85,0,85,6],[85,11,85,12],[86,0,86,12],[87,11,87,12],[88,11,88,12],[89,11,89,12],[75,11,75,12],[76,11,76,12],[77,11,77,12],[78,11,78,12],[74,0,74,12],[79,0,79,6],[79,11,79,12],[80,0,80,12],[81,11,81,12],[67,11,67,12],[69,11,69,12],[70,11,70,12],[68,0,68,12],[66,11,66,12],[71,11,71,12],[72,11,72,12],[73,0,73,6],[73,11,73,12],[10,0,10,12],[15,11,15,12],[32,11,32,12],[31,11,31,12],[7,3,7,4],[53,0,53,6],[35,11,35,12],[34,11,34,12],[16,11,16,12],[43,11,43,12],[41,11,41,12],[22,11,22,12],[23,0,23,6],[23,11,23,12],[24,0,24,12],[25,11,25,12],[26,11,26,12],[27,11,27,12],[48,0,48,12],[36,0,36,12],[42,0,42,12],[28,11,28,12],[29,0,29,6],[29,11,29,12],[0,0,0,12],[4,0,4,1],[16,0,16,6],[2,2,2,3],[3,2,3,3],[4,2,4,3],[11,11,11,12],[2,0,2,1],[2,4,2,6],[3,4,3,6],[4,4,4,6],[7,2,8,2],[12,11,12,12],[2,9,2,10],[3,9,3,10],[4,9,4,10],[9,0,9,10],[3,0,3,1],[7,1,8,1],[7,0,8,0],[6,0,6,4],[13,11,13,12],[7,11,7,12],[8,11,8,12],[125,0,125,10],[54,0,54,12],[55,11,55,12],[56,11,56,12],[57,11,57,12],[58,11,58,12],[59,0,59,6],[59,11,59,12],[17,0,17,12],[18,11,18,12],[19,11,19,12],[20,11,20,12],[49,11,49,12],[53,11,53,12],[52,11,52,12],[35,0,35,6],[41,0,41,6],[30,0,30,12],[60,0,60,2],[60,3,60,6],[60,11,60,12],[61,0,61,10],[62,0,62,12],[67,0,67,6]]}
["Relació classificada de totes les despeses realitzades per a l'execució de l'activitat  subvencionada"]
[]
["Persona física/jurídica beneficiària:         ",null,null,null,"Import total del projecte:",null,null,null,null,null,null,"euros"]
["Codi de subvenció:",null,null,null,"Import de la subvenció atorgada:",null,null,null,null,null,null,"euros"]
["Nom del projecte subvencionat:",null,null,null,"Període d'execució del projecte subvencionat:",null,null,null,null,null,null,"a"]
[]
["Despeses del projecte/activitat/servei subvencionat (*)"]
["Núm. d'ordre (0)","Número de document: justificants despesa personal (1), factura o rebut/tiquet(2)","Concepte de la factura / \ndocument probatori equivalent","Emissor/a de la factura",null,"Data d'emissió","Import total de la factura","Percentatge d'iva deduït o el de després d'aplicar la Prorrata","Import després de deduïr l'IVA corresponent","Import imputable (dedicat) al projecte (3)","Import imputable a la subvenció municipal (4)","Observacions"]
[null,null,null,"NIF","Nom","dd/mm/aaaa","euros","%","euros","euros","euros"]
["DESPESES DIRECTES (Aquelles que s'identifiquen directament amb el projecte)"]
["D1.  - Retribucions i seguretat social (règim general o règim d’autònoms) del personal propi  vinculat/da al projecte"]
[]
[]
[]
[]
[]
[null,null,null,null,null,null,null,null,"Subtotal D1",{"$f":"SUM(J12:J16)","v":0},{"$f":"SUM(K12:K16)","v":0}]
["D2.  Treballs realitzats per professionals i empreses externes directament vinculades a l’acompanyament de processos de l’entitat i amb les seves associades"]
[]
[]
[]
[]
[]
[null,null,null,null,null,null,null,null,"Subtotal D2",{"$f":"SUM(J19:J23)","v":0},{"$f":"SUM(K19:K23)","v":0}]
["D3.  Lloguer de bens immobles directament vinculats al projecte"]
[]
[]
[]
[]
[null,null,null,null,null,null,null,null,"Subtotal D3",{"$f":"SUM(J26:J29)","v":0},{"$f":"SUM(K26:K29)","v":0}]
["D4.  Adquisició de materials i béns consumibles íntegrament imputables al projecte"]
[]
[]
[]
[]
[null,null,null,null,null,null,null,null,"Subtotal D4",{"$f":"SUM(J32:J35)","v":0},{"$f":"SUM(K32:K35)","v":0}]
["D5.  Publicitat i propaganda de les activitats directament vinculades al projecte"]
[]
[]
[]
[]
[null,null,null,null,null,null,null,null,"Subtotal D5",{"$f":"SUM(J38:J41)","v":0},{"$f":"SUM(K38:K41)","v":0}]
["D6.  Viatges i desplaçaments imputables a les activitats del projecte"]
[]
[]
[]
[]
[null,null,null,null,null,null,null,null,"Subtotal D6",{"$f":"SUM(J44:J47)","v":0},{"$f":"SUM(K44:K47)","v":0}]
["D7.  Despeses de l’informe d’auditoria"]
[]
[]
[]
[]
[null,null,null,null,null,null,null,null,"Subtotal D7",{"$f":"SUM(J50:J53)","v":0},{"$f":"SUM(K50:K53)","v":0}]
["D8.  Altres despeses que de manera justificada puguin imputar-se directament al projecte"]
[]
[]
[]
[]
[null,null,null,null,null,null,null,null,"Subtotal D8",{"$f":"SUM(J56:J59)","v":0},{"$f":"SUM(K56:K59)","v":0}]
["TOTAL DESPESES DIRECTES ",null,null,null,null,null,null,null,"TOTAL DESPESES DIRECTES",{"$f":"+J17+J36+J42+J48+J54+J30+J24+J60","v":0},{"$f":"+K17+K36+K42+K48+K54+K30+K24+K60","v":0}]
["DESPESES INDIRECTES (no es poden assignar directament al projecte sense fer servir algun % d'assignació)"]
["I.1 Personal de suport al projecte (Nòmines i seguretat social)"]
[]
[]
[]
[]
[null,null,null,null,null,null,null,null,"Subtotal I1",{"$f":"SUM(J64:J67)","v":0},{"$f":"SUM(K64:K67)","v":0}]
["I.2  Assegurances"]
[]
[]
[]
[]
[null,null,null,null,null,null,null,null,"Subtotal I2",{"$f":"SUM(J70:J73)","v":0},{"$f":"SUM(K70:K73)","v":0}]
["I.3  Amortització"]
[]
[]
[]
[]
[null,null,null,null,null,null,null,null,"Subtotal I3",{"$f":"SUM(J76:J79)","v":0},{"$f":"SUM(K76:K79)","v":0}]
["I.4  Lloguer de béns immobles"]
[]
[]
[]
[]
[null,null,null,null,null,null,null,null,"Subtotal I4",{"$f":"SUM(J82:J85)","v":0},{"$f":"SUM(K82:K85)","v":0}]
["I.5  Adquisició de materials i béns consumibles parcialment imputables al projecte"]
[]
[]
[]
[]
[null,null,null,null,null,null,null,null,"Subtotal I5",{"$f":"SUM(J88:J91)","v":0},{"$f":"SUM(K88:K91)","v":0}]
["I.6  Manteniment d’edificis i/o instal·lacions"]
[]
[]
[]
[]
[null,null,null,null,null,null,null,null,"Subtotal I6",{"$f":"SUM(J94:J97)","v":0},{"$f":"SUM(K94:K97)","v":0}]
["I.7  Comunicacions (telèfon, correus, connexió a internet)"]
[]
[]
[]
[]
[null,null,null,null,null,null,null,null,"Subtotal I7",{"$f":"SUM(J100:J103)","v":0},{"$f":"SUM(K100:K103)","v":0}]
["I.8  Despeses financeres"]
[]
[]
[]
[]
[null,null,null,null,null,null,null,null,"Subtotal I8",{"$f":"SUM(J106:J109)","v":0},{"$f":"SUM(K106:K109)","v":0}]
["I.9  Subministraments "]
[]
[]
[]
[]
[null,null,null,null,null,null,null,null,"Subtotal I9",{"$f":"SUM(J112:J115)","v":0},{"$f":"SUM(K112:K115)","v":0}]
["I.10  Treball realitzat per altres empreses, parcialment imputables al projecte (neteja, seguretat...)"]
[]
[]
[]
[]
[null,null,null,null,null,null,null,null,"Subtotal I10",{"$f":"SUM(J118:J121)","v":0},{"$f":"SUM(K118:K121)","v":0}]
["TOTAL DESPESES INDIRECTES ",null,null,null,null,null,null,null,"TOTAL DESPESES INDIRECTES",{"$f":"+J68+J74+J80+J86+J92+J98+J104+J110+J116+J122","v":0},{"$f":"+K68+K74+K80+K86+K92+K98+K104+K110+K116+K122","v":0}]
["TOTAL DESPESES",null,null,null,null,null,null,null,"TOTAL",{"$f":"+J123+J61","v":0},{"$f":"+K123+K61","v":0}]
[]
["El Sr./Sra. (indicar el nom i cognoms de la persona representant que signa la justificació)  amb DNI/NIE (indicar el núm. DNI) en qualitat de persona física beneficiària o representant legal de la persona jurídica beneficiària (indicar nom i cognoms) amb NIF (indicar núm DNI)."]
["CERTIFICA que les despeses imputades al projecte/activitat/servei subvencionat han estat efectivament efectuades; que custodiarà la documentació suport que ho acredita; que  aquesta documentació es troba a disposició de l'Ajuntament de Barcelona o dels altres ens municipals en els arxius d'aquesta Entitat, durant un període mínim de 4 anys a comptar des de la data de presentació de la present justificació."]
[]
[]
[]
[]
[null,"Població i data: ",null,null,"Signatura i segell (en cas de registre físic)"]
[]
[]
["Notes:"]
["(*) S'han de relacionar totes les despeses del projecte/activitat/servei subvencionat. En el cas que el nombre de files de cada concepte sigui insuficient podeu inserir línies dins del mateix concepte seleccionant una cel·la verda i fent clic sobre el botó d'inserir línia."]
["(0) El número d'ordre ha de ser correlatiu començant per D.1.1, D.1.2, D.1.3, D.2.4, etc."]
["(1) Respecte a les despeses de recursos humans, pot ser subvencionable el cost total salarial mensual, que correspon a la suma de la retribució bruta que apareix a la nòmina del treballador/a més la quota de l'empresa a la Seg. Social. Les despeses de personal es justifiquen amb la nòmina del treballador/a acompanyada dels corresponents TC1 i TC2 de la TGSS i el model 111 de l'IRPF."]
["(2) En el cas que el document justificatiu de la resta de despeses, no sigui una factura, sinó un altre document probatori equivalent, com un rebut o justificant (com per dietes o transport públic), indiqueu-lo en la columna \"observacions\"."]
["(3) En el cas que un justificant inclogui conceptes que no tenen a veure amb el projecte/activitat/servei per al qual s'ha atorgat la subvenció, aquí només s'ha d'indicar la part que realment s'ha dedicat al projecte."]
["(4) En aquesta columna s'ha d'indicar l'import total o parcial de la factura  que s'imputa a la subvenció rebuda de l'Ajuntament de Barcelona. El total imputat, en aquesta columna, ha de ser igual  a l'import de la subvenció rebuda."]
["Modalitat Ba: Intercooperació de 2n i major nivell: Projectes promoguts per entitats de l'Economia Social i Solidària o de les finances ètiques de segon nivell i superior, que contribueixin al desplegament de l’Estratègia BCN 2030 d’ESS de Barcelona, i tinguin per destinatàries a les seves entitats sòcies"]
["1.  La quantia de la subvenció atorgada no superarà el 80% de la despesa total del projecte a subvencionar. "]
["2.  L'import màxim de subvenció per a la modalitat \"a\" de l’àmbit temàtic B d'Interccoperació és 35.000,00 €."]
["3.  En el cas que la sol·licitud presentada sobrepassi l’import màxim, es considerarà com a import sol·licitat el màxim de l'establert a la convocatòria."]
["4.  Es limita amb un màxim del 25% l’import de la subvenció per a despeses de personal propi assignat al projecte."]
["5.  Les despeses indirectes imputades al projecte detallades, no podran superar el 10% de l’import de la subvenció."]
["6.  El caràcter subvencionable de la despesa d'amortització estarà subjecte a les condicions següents:"]
["- Que les subvencions no hagin contribuït a la compra dels béns."]
["- Que l'amortització es calculi de conformitat amb les normes de comptabilitat generalment acceptades."]
["- Que el cost es refereixi al període subvencionable."]
["7.  Quan s'hagi de fer despeses de més de 12.000 €, sense IVA, en el cas de prestacions de serveis o lliurament de béns i per aquelles despeses de més de 30.000 €,  sense IVA, en el cas d'execució d'obres, hauran d'incorporar tres pressupostos sol·licitats i argumentar el motiu de l'adjudicació en el cas de no ser la proposta més avantatjosa econòmicament."]
["8.  En cap cas es consideraran despeses subvencionables:"]
["- Els impostos indirectes quan siguin susceptibles de recuperació o compensació, ni els impostos sobre la renda."]
["- Les despeses d'inversió, incloses les adquisicions de béns mobles."]
["- Les despeses realitzades amb data anterior a l'inici del projecte i data posterior a la finalització del projecte."]
["- Altres despeses que s'indiquin a la convocatòria."]
["9. Per les subvencions atorgades per import igual o superior a 20.000 € és necessari un informe d'auditoria per a la justificació. "]
["10. L'import d'aquest informe es considera despesa subvencionable, amb un límit màxim de 1.500 €."]
["11. Els salaris percebuts per les persones contractades en el marc del projecte subvencionat no siguin inferiors a 1.088,56€ bruts mensuals (13.062,72€ bruts en còmput anual) en el cas de jornades completes, o la part proporcional en el cas de jornades parcials (punt 7 de les bases 2019: Requisits dels projectes)."]
["12. Els materials produïts de difusió, estudis, informes o materials didàctics utilitzats, etc. en el cas de tractar-se de despesa elegible de la subvenció, hauran de tenir llicència Creative Commons -Compartir Igual- (share alike) i no podrà tenir la condició –Sense Obres Derivades- (no derivate Works)."]

{"sheet":"Relació d'ingressos ","index":1,"n_rows":70,"n_cols":10,"rows_kept":70,"cut":false,"hidden":false,"merged":[[23,0,23,3],[43,6,43,9],[42,6,42,9],[18,0,18,3],[39,0,39,9],[40,6,40,9],[23,6,23,9],[22,6,22,9],[20,6,20,9],[31,6,31,9],[35,6,35,9],[43,0,43,3],[41,6,41,9],[30,6,30,9],[38,6,38,9],[37,6,37,9],[13,6,13,9],[18,6,18,9],[25,6,25,9],[33,6,33,9],[32,6,32,9],[26,6,26,9],[28,6,28,9],[27,6,27,9],[17,6,17,9],[16,6,16,9],[15,6,15,9],[21,6,21,9],[38,0,38,3],[24,0,24,9],[29,0,29,9],[34,0,34,9],[33,0,33,3],[28,0,28,3],[36,6,36,9],[0,0,0,9],[9,0,9,9],[14,0,14,9],[19,0,19,9],[7,6,8,9],[10,6,10,9],[11,6,11,9],[7,0,8,0],[12,6,12,9],[3,2,3,3],[2,2,2,3],[6,0,6,3],[4,2,4,3],[7,2,7,3],[7,1,8,1],[13,0,13,3],[44,0,44,9],[49,0,49,9],[48,6,48,9],[50,6,50,9],[48,0,48,3],[45,6,45,9],[65,1,65,2],[55,6,55,9],[57,6,57,9],[51,6,51,9],[52,6,52,9],[53,6,53,9],[54,6,54,9],[57,0,57,3],[56,0,56,3],[56,6,56,9],[59,0,59,9],[60,0,61,9]]}
["Detall de tots els ingressos obtinguts i aportacions del propi beneficiari per a l'execució de l'activitat subvencionada"]
[]
[null,"Nom de la persona física/jurídica beneficiària:        ",{"$f":"IF('Relació de despeses'!C3:D3<>\"\",'Relació de despeses'!C3:D3,\"\")","v":""},null,"Import total del projecte :",null,null,{"$f":"IF(+'Relació de despeses'!J3=\"\",\"\",+'Relació de despeses'!J3)","v":""},"euros"]
[null,"Codi de subvenció",{"$f":"IF('Relació de despeses'!C4:D4<>\"\",'Relació de despeses'!C4:D4,\"\")","v":""},null,"Import de la subvenció atorgada:",null,null,{"$f":"IF(+'Relació de despeses'!J4=\"\",\"\",+'Relació de despeses'!J4)","v":""},"euros"]
[null,"Nom del projecte subvencionat",{"$f":"IF('Relació de despeses'!C5:D5<>\"\",'Relació de despeses'!C5:D5,\"\")","v":""},null,"Període d'execució del projecte subvencionat:",null,null,{"$f":"IF(+'Relació de despeses'!J5=\"\",\"\",+'Relació de despeses'!J5)","v":""},"a",{"$f":"IF(+'Relació de despeses'!M5=\"\",\"\",+'Relació de despeses'!M5)","v":""}]
[]
["Ingressos del projecte/activitat/servei subvencionat"]
["Núm. d'ordre (0)","Concepte de l'ingrés","Emissor/a de l'ingrés",null,"Data de cobrament\n(dd/mm/aaaa)","Import","Observacions"]
[null,null,"NIF","Nom","(1)","euros"]
["A. Subvenció municipal "]
[]
[]
[]
[null,null,null,null,"Subtotal A",{"$f":"SUM(F11:F13)","v":0}]
["B. Subvencions d'altres administracions"]
[]
[]
[]
[null,null,null,null,"Subtotal B",{"$f":"SUM(F16:F18)","v":0}]
["C. Subvencions d'ens privats"]
[]
[]
[]
[null,null,null,null,"Subtotal C",{"$f":"SUM(F21:F23)","v":0}]
["D. Recursos propis de l'entitat aplicats al projecte"]
[]
[]
[]
[null,null,null,null,"Subtotal D",{"$f":"SUM(F26:F28)","v":0}]
["E. Taquillatge"]
[]
[]
[]
[null,null,null,null,"Subtotal E",{"$f":"SUM(F31:F33)","v":0}]
["F. Quotes d'inscripció"]
[]
[]
[]
[null,null,null,null,"Subtotal F",{"$f":"SUM(F36:F38)","v":0}]
["G. Venda de Productes"]
[]
[]
[]
[null,null,null,null,"Subtotal G",{"$f":"SUM(F41:F43)","v":0}]
["H. Publicitat i/o Esponsorització"]
[]
[]
[]
[null,null,null,null,"Subtotal H",{"$f":"SUM(F46:F48)","v":0}]
["I. Altres ingressos"]
[]
[]
[]
[]
[]
[]
[null,null,null,null,"Subtotal I",{"$f":"SUM(F51:F56)","v":0}]
["Total INGRESSOS",null,null,null,"TOTAL",{"$f":"+F14+F19+F24+F29+F34+F39+F44+F49+F57","v":0}]
[]
["El Sr./Sra. (indicar el nom i cognoms de la persona representant que signa la justificació)  amb DNI/NIE (indicar el núm. DNI) en qualitat de persona física beneficiària o representant legal de la persona jurídica beneficiària (indicar nom i cognoms) amb NIF (indicar núm DNI)."]
["CERTIFICA que les despeses imputades al projecte/activitat/servei subvencionat han estat efectivament efectuades; que custodiarà la documentació suport que ho acredita; que  aquesta documentació es troba a disposició de l'Ajuntament de Barcelona o dels altres ens municipals en els arxius d'aquesta Entitat, durant un període mínim de 4 anys a comptar des de la data de presentació de la present justificació."]
[]
[]
[]
[]
[null,"Població i data: ",null,null,"Signatura i segell (en cas de registre físic)"]
[]
[null,"Nota:"]
[null,"(0) El número d'ordre ha de ser correlatiu començant pel número 1"]
[null,"(1) En cas que l'ingrés estigui pendent cobrament, indicar \"P. Cobrament\" "]

{"sheet":"despeses i ingressos","index":2,"n_rows":79,"n_cols":11,"rows_kept":79,"cut":false,"hidden":false,"merged":[[39,0,40,9],[42,1,42,2],[20,1,21,1],[20,2,21,2],[20,3,21,3],[20,4,21,4],[22,0,23,1],[4,0,4,1],[4,2,4,3],[4,5,4,6],[5,0,5,1],[5,2,5,3],[5,5,5,6],[10,9,11,9],[10,0,11,1],[10,2,11,2],[10,3,11,3],[10,6,11,7],[6,0,6,1],[6,2,6,3],[9,0,9,1],[9,6,9,7],[10,8,11,8],[51,0,51,10],[28,6,28,8],[29,6,29,8],[25,6,25,7],[22,2,23,2],[22,3,23,3],[24,6,24,7],[25,8,25,9],[33,7,35,10],[45,0,45,10],[46,0,46,10],[47,0,47,10],[48,0,48,10],[49,0,49,10],[50,0,50,10],[38,0,38,9]]}
[]
[]
["Estat de les despeses realitzades i dels ingressos obtinguts per a l'execució de l'activitat subvencionada (*)"]
[]
["Nom de la persona física/jurídica beneficiària:         ",null,{"$f":"IF('Relació de despeses'!C3:D3<>\"\",'Relació de despeses'!C3:D3,\"\")","v":""},null,null,"Import total del projecte:",null,{"$f":"'Relació d''ingressos '!H3","v":""},"euros"]
["Codi de subvenció:",null,{"$f":"IF('Relació de despeses'!C4:D4<>\"\",'Relació de despeses'!C4:D4,\"\")","v":""},null,null,"Import de la subvenció atorgada:",null,{"$f":"'Relació d''ingressos '!H4","v":""},"euros"]
["Nom del projecte subvencionat:",null,{"$f":"IF('Relació de despeses'!C5:D5<>\"\",'Relació de despeses'!C5:D5,\"\")","v":""},null,null,"Període d'execució del projecte subvencionat:",null,null,{"$f":"'Relació d''ingressos '!H5","v":""},"a",{"$f":"'Relació d''ingressos '!J5","v":""}]
[]
["SUBVENCIONS PER A LA PROMOCIÓ I REFORÇ DE L'ECONOMIA SOCIAL I SOLIDÀRIA 2020"]
["DESPESES PREVISTES",null,"import en euros",null,null,null,"INGRESSOS PREVISTOS",null,"import en euros"]
["Despeses directes \n(aquelles que s'identifiquen directament amb el projecte)",null,"Previsió inicial o reformulada ja aprovada (1)","Despeses realitzades (2)","Diferència\n",null,"Ingressos previstos",null,"Previsió inicial (1)","Ingressos obtinguts (3)"]
[null,null,null,null,"(2-1)"]
["Ba","D1.  - Retribucions i seguretat social (règim general o règim d’autònoms) del personal propi  vinculat/da al projecte",null,{"$f":"'Relació de despeses'!J17","v":0},{"$f":"+C13-D13","v":0},{"$f":"+IF(D13<0,\"No s'admeten valors negatius\",\"\")","v":""},"A.","Subvenció municipal (import sol·licitat a la instància/atorgat)",null,{"$f":"'Relació d''ingressos '!F14","v":0},{"$f":"+IF(J13<0,\"No s'admeten valors negatius\",IF(J13<>'Relació d''ingressos '!F14,\"No coincideix amb import pestanya anterior\",\"\"))","v":""}]
[null,"D2.  Treballs realitzats per professionals i empreses externes directament vinculades a l’acompanyament de processos de l’entitat i amb les seves associades",null,{"$f":"'Relació de despeses'!J24","v":0},0,{"$f":"+IF(D14<0,\"No s'admeten valors negatius\",\"\")","v":""},"B.","Subvencions d'altres administracions",null,{"$f":"'Relació d''ingressos '!F19","v":0},{"$f":"+IF(J14<0,\"No s'admeten valors negatius\",\"\")","v":""}]
[null,"D3.  Lloguer de bens immobles directament vinculats al projecte",null,{"$f":"'Relació de despeses'!J30","v":0},0,"","C.","Subvencions d'ens privats",null,{"$f":"'Relació d''ingressos '!F24","v":0},""]
[null,"D4.  Adquisició de materials i béns consumibles íntegrament imputables al projecte",null,{"$f":"'Relació de despeses'!J36","v":0},0,"","D.","Recursos propis de l'entitat aplicats al projecte",null,{"$f":"'Relació d''ingressos '!F29","v":0},""]
[null,"D5.  Publicitat i propaganda de les activitats directament vinculades al projecte",null,{"$f":"'Relació de despeses'!J42","v":0},0,"","E.","Taquillatge",null,{"$f":"'Relació d''ingressos '!F34","v":0},""]
[null,"D6.  Viatges i desplaçaments imputables a les activitats del projecte",null,{"$f":"'Relació de despeses'!J48","v":0},0,"","F.","Quotes d'inscripció",null,{"$f":"'Relació d''ingressos '!F39","v":0},""]
[null,"D7.  Despeses de l’informe d’auditoria",null,{"$f":"'Relació de despeses'!J54","v":0},0,"","G.","Venda de Productes",null,{"$f":"'Relació d''ingressos '!F44","v":0},""]
[null,"D8. Altres despeses que de manera justificada puguin imputar-se directament al projecte",null,{"$f":"'Relació de despeses'!J60","v":0},0,{"$f":"+IF(D20<0,\"No s'admeten valors negatius\",\"\")","v":""},"H","Publicitat i/o Esponsorització",null,{"$f":"'Relació d''ingressos '!F49","v":0},""]
[null,"Total Despeses Directes   ",{"$f":"SUM(C13:C20)","v":0},{"$f":"SUM(D13:D20)","v":0},{"$f":"SUM(E13:E20)","v":0},{"$f":"+IF(D21<0,\"No s'admeten valors negatius\",\"\")","v":""},"I.","Altres ingressos",null,{"$f":"'Relació d''ingressos '!F57","v":0},""]
[null,null,null,null,null,{"$f":"+IF(D22<0,\"No s'admeten valors negatius\",\"\")","v":""},null,"Total Ingressos",{"$f":"SUM(I13:I21)","v":0},{"$f":"SUM(J13:J21)","v":0}]
["Despeses indirectes \n(no es poden assignar directament al projecte sense fer servir algun % d'assignació)",null,"Previsió inicial o reformulada ja aprovada (1)","Despeses realitzades (2)","Diferència\n"]
[null,null,null,null,"(2-1)"]
["Ba","I.1 Personal de suport al projecte (Nòmines i seguretat social)",null,{"$f":"'Relació de despeses'!J68","v":0},{"$f":"+C25-D25","v":0},{"$f":"+IF(D25<0,\"No s'admeten valors negatius\",\"\")","v":""},"Ingressos menys despeses ",null,{"$f":"+I22-C36","v":0},{"$f":"+J22-D36","v":0}]
[null,"I.2  Assegurances",null,{"$f":"'Relació de despeses'!J74","v":0},0,"","Desviació de Despeses (4)",null,"Desviació d'ingressos (4)"]
[null,"I.3  Amortització",null,{"$f":"'Relació de despeses'!J80","v":0},0,"","Import"," % ","Import","%"]
[null,"I.4  Lloguer de béns immobles",null,{"$f":"'Relació de despeses'!J86","v":0},0,"",{"$f":"D36-C36","v":0},{"$f":"D36/C36","v":{"$error":"#DIV/0!"}},{"$f":"J22-I22","v":0},{"$f":"J22/I22","v":{"$error":"#DIV/0!"}}]
[null,"I.5  Adquisició de materials i béns consumibles parcialment imputables al projecte",null,{"$f":"'Relació de despeses'!J92","v":0},0,"","% subvencionat inicialment o després de reformulació (5)",null,null,{"$f":"I13/I22","v":{"$error":"#DIV/0!"}}]
[null,"I.6  Manteniment d’edificis i/o instal·lacions",null,{"$f":"'Relació de despeses'!J98","v":0},0,"","% subvencionat després de justificació (6)",null,null,{"$f":"+J13/J22","v":{"$error":"#DIV/0!"}}]
[null,"I.7  Comunicacions (telèfon, correus, connexió a internet)",null,{"$f":"'Relació de despeses'!J104","v":0},0,""]
[null,"I.8  Despeses financeres",null,{"$f":"'Relació de despeses'!J110","v":0},0,""]
[null,"I.9  Subministraments ",null,{"$f":"'Relació de despeses'!J116","v":0},0,""]
[null,"I.10  Treball realitzat per altres empreses, parcialment imputables al projecte (neteja, seguretat...)",null,{"$f":"'Relació de despeses'!J122","v":0},0,""]
[null,"Total Despeses Indirectes   ",{"$f":"SUM(C25:C34)","v":0},{"$f":"SUM(D25:D34)","v":0},{"$f":"SUM(E25:E34)","v":0}]
[null,"Total Despeses ",{"$f":"C21+C35","v":0},{"$f":"D21+D35","v":0},{"$f":"E21+E35","v":0}]
[]
[]
["El Sr./Sra. (indicar el nom i cognoms de la persona representant que signa la justificació)  amb DNI/NIE (indicar el núm. DNI) en qualitat de persona física beneficiària o representant legal de la persona jurídica beneficiària (indicar nom i cognoms) amb NIF (indicar núm DNI)."]
["CERTIFICA que els ingressos imputats al projecte/activitat/servei subvencionat han estat efectivament ingressats; que custodiarà la documentació suport que ho acredita; que  aquesta documentació es troba a disposició de l'Ajuntament de Barcelona o dels altres ens municipals en els arxius d'aquesta Entitat, durant un període mínim de 4 anys a comptar des de la data de presentació de la present justificació."]
[]
[]
[null,"Població i data: ",null,null,"Signatura i segell (en cas de registre físic)"]
[]
["Notes:"]
["(*) Les columnes ombrejades en color  s'aniran emplenant automàticament a partir de les dades introduïdes en els documents de despeses -detall i ingressos-detall. Per tant, no imprimiu aquest full fins haver emplenat els altres."]
["(1) Previsió inicial o reformulació ja aprovada= S'han d'indicar la previsió inicial de despeses i d'ingressos segons allò que es va indicar al projecte original en el \"pla de viabilitat econòmica del projecte - pressupost general\" . En cas que ja s'hagi aprovat una reformulació, s'han d'indicar les quantitats reformulades. "]
["(2) Despeses reals = Cost real total del projecte subvencionat. Automàticament s'introduiran els subtotals de les despeses relacionades al full Despeses-detall."]
["(3) Ingresos reals = Total d'ingressos obtinguts per a la realització del projecte subvencionat. Automàticament s'introduiran els subtotals dels ingressos relacionats al full Ingressos-detall."]
["(4) Desviació: En el cas de les despeses, la desviació és la diferència entre despeses reals i la previsió inicial de despeses; i en el cas d'ingressos, la diferència entre els ingressos reals i la previsió inicial d'ingressos. "]
["(5) % finançament municipal = percentatge que suposen les subvencions municipals (A) respecte del  total d'ingressos del projecte subvencionat."]
["(6) El % de la desviació final de despeses es calcula dividint l'import resultant de despeses reals - despeses previstes, entre el total de despeses previstes i de la mateixa manera els ingressos, En cas d'existir una desviació sempre s'ha de motivar."]
[]
[]
[]
[]
[]
[]
[]
[]
[]
[]
[]
[]
[]
[]
[]
[]
[]
[]
[]
[]
[]
[]
[]
[]
[]
[]
[null,null,0]